[Event "Titled Tuesday Blitz April 25 Early 2023"]
[White "Koellner, Ruben Gideon"]
[Black "Tactrics"]
[WhiteFideId "12993093"]
[WhiteElo "2314"]
[BlackElo "2964"]
[Result "0-1"]
[Round "02"]
[TimeControl "180+2"]
[Date "2023.04.25"]
[WhiteClock "0:00:03"]
[BlackClock "0:00:10"]

1. d4 {[%clk 0:03:00]}  e6 {[%clk 0:03:00]} 2. Nf3 {[%clk 0:02:57]}  Nf6 {[%clk 0:03:00]} 3. Nbd2 {[%clk 0:02:57]}  d5 {[%clk 0:02:57]} 4. e3 {[%clk 0:02:58]}  b6 {[%clk 0:02:57]} 5. Bd3 {[%clk 0:02:57]}  Bb7 {[%clk 0:02:58]} 6. Ne5 {[%clk 0:02:57]}  c5 {[%clk 0:02:53]} 7. c3 {[%clk 0:02:56]}  Bd6 {[%clk 0:02:53]} 8. f4 {[%clk 0:02:56]}  Nc6 {[%clk 0:02:50]} 9. Qf3 {[%clk 0:02:56]}  a6 {[%clk 0:02:47]} 10. O-O {[%clk 0:02:52]}  Ne7 {[%clk 0:02:41]} 11. g4 {[%clk 0:02:51]}  Qc7 {[%clk 0:02:37]} 12. g5 {[%clk 0:02:49]}  Nd7 {[%clk 0:02:34]} 13. Qh3 {[%clk 0:02:19]}  g6 {[%clk 0:02:23]} 14. Ndf3 {[%clk 0:02:03]}  Nf5 {[%clk 0:02:09]} 15. Bd2 {[%clk 0:01:53]}  Nb8 {[%clk 0:02:00]} 16. Ng4 {[%clk 0:01:50]}  Nd7 {[%clk 0:01:47]} 17. Nfe5 {[%clk 0:01:50]}  Be7 {[%clk 0:01:38]} 18. Nxd7 {[%clk 0:01:23]}  Qxd7 {[%clk 0:01:36]} 19. Ne5 {[%clk 0:01:24]}  Qc7 {[%clk 0:01:34]} 20. Rae1 {[%clk 0:01:10]}  Bd6 {[%clk 0:01:33]} 21. Ng4 {[%clk 0:01:09]}  O-O-O {[%clk 0:01:31]} 22. Qf3 {[%clk 0:01:05]}  Kb8 {[%clk 0:01:28]} 23. a4 {[%clk 0:00:58]}  Ka7 {[%clk 0:01:24]} 24. Ra1 {[%clk 0:00:58]}  c4 {[%clk 0:01:14]} 25. Bxf5 {[%clk 0:00:35]}  exf5 {[%clk 0:01:14]} 26. Ne5 {[%clk 0:00:36]}  h6 {[%clk 0:01:10]} 27. h4 {[%clk 0:00:14]}  hxg5 {[%clk 0:01:09]} 28. hxg5 {[%clk 0:00:15]}  Bxe5 {[%clk 0:01:08]} 29. fxe5 {[%clk 0:00:13]}  Rh5 {[%clk 0:01:06]} 30. Kg2 {[%clk 0:00:09]}  Rdh8 {[%clk 0:00:59]} 31. Rh1 {[%clk 0:00:09]}  Rxg5+ {[%clk 0:00:57]} 32. Kf2 {[%clk 0:00:09]}  Rgh5 {[%clk 0:00:47]} 33. Rxh5 {[%clk 0:00:09]}  Rxh5 {[%clk 0:00:47]} 34. Rh1 {[%clk 0:00:09]}  Rxh1 {[%clk 0:00:42]} 35. Qxh1 {[%clk 0:00:10]}  Bc6 {[%clk 0:00:43]} 36. Qh7 {[%clk 0:00:10]}  Qd7 {[%clk 0:00:42]} 37. a5 {[%clk 0:00:09]}  bxa5 {[%clk 0:00:41]} 38. Ke2 {[%clk 0:00:09]}  Ba4 {[%clk 0:00:38]} 39. Kf3 {[%clk 0:00:09]}  Bd1+ {[%clk 0:00:37]} 40. Kf4 {[%clk 0:00:09]}  Kb6 {[%clk 0:00:32]} 41. Qg7 {[%clk 0:00:09]}  Qe7 {[%clk 0:00:27]} 42. Qh8 {[%clk 0:00:06]}  Kb5 {[%clk 0:00:23]} 43. Qb8+ {[%clk 0:00:06]}  Ka4 {[%clk 0:00:24]} 44. Qh8 {[%clk 0:00:03]}  Kb3 {[%clk 0:00:23]} 45. Qb8+ {[%clk 0:00:02]}  Kc2 {[%clk 0:00:22]} 46. Be1 {[%clk 0:00:03]}  a4 {[%clk 0:00:17]} 47. Qd6 {[%clk 0:00:03]}  Qe8 {[%clk 0:00:15]} 48. Qa3 {[%clk 0:00:03]}  Kd3 {[%clk 0:00:12]} 49. Bh4 {[%clk 0:00:02]}  Qh8 {[%clk 0:00:11]} 50. Bf6 {[%clk 0:00:02]}  Qh6+ {[%clk 0:00:10]} 51. Kg3 {[%clk 0:00:01]}  Qxe3+ {[%clk 0:00:10]} 52. Kh4 {[%clk 0:00:02]}  Qf4+ {[%clk 0:00:09]} 53. Kh3 {[%clk 0:00:02]}  Bg4+ {[%clk 0:00:10]} 54. Kg2 {[%clk 0:00:02]}  Qf3+ {[%clk 0:00:10]} 55. Kg1 {[%clk 0:00:03]}  Qg3+ {[%clk 0:00:09]} 56. Kf1 {[%clk 0:00:03]}  Be2# {[%clk 0:00:10]} 0-1


[Site "https://www.chess.com"]

[Event "Titled Tuesday Blitz April 25 Early 2023"]
[White "tufferguy"]
[Black "Hakobyan, Aram"]
[BlackFideId "13306677"]
[WhiteElo "2613"]
[BlackElo "2584"]
[Result "0-1"]
[Round "02"]
[TimeControl "180+2"]
[Date "2023.04.25"]
[WhiteClock "0:00:45"]
[BlackClock "0:01:33"]

1. d4 {[%clk 0:03:00]}  g6 {[%clk 0:02:53]} 2. e4 {[%clk 0:02:56]}  Bg7 {[%clk 0:02:52]} 3. Nc3 {[%clk 0:02:51]}  c5 {[%clk 0:02:51]} 4. Be3 {[%clk 0:02:49]}  cxd4 {[%clk 0:02:51]} 5. Bxd4 {[%clk 0:02:50]}  Bxd4 {[%clk 0:02:52]} 6. Qxd4 {[%clk 0:02:50]}  Nf6 {[%clk 0:02:53]} 7. O-O-O {[%clk 0:02:28]}  Nc6 {[%clk 0:02:53]} 8. Qe3 {[%clk 0:02:27]}  d6 {[%clk 0:02:49]} 9. f3 {[%clk 0:02:25]}  Qa5 {[%clk 0:02:43]} 10. g4 {[%clk 0:02:23]}  Be6 {[%clk 0:02:36]} 11. Kb1 {[%clk 0:02:20]}  Rc8 {[%clk 0:02:35]} 12. g5 {[%clk 0:02:07]}  Nd7 {[%clk 0:02:32]} 13. f4 {[%clk 0:01:59]}  Nb6 {[%clk 0:02:27]} 14. Nf3 {[%clk 0:01:48]}  O-O {[%clk 0:02:25]} 15. h4 {[%clk 0:01:36]}  Na4 {[%clk 0:02:16]} 16. Nxa4 {[%clk 0:01:27]}  Qxa4 {[%clk 0:02:17]} 17. a3 {[%clk 0:01:27]}  Nb4 {[%clk 0:02:14]} 18. Bd3 {[%clk 0:01:05]}  Nxc2 {[%clk 0:02:06]} 19. Qf2 {[%clk 0:00:59]}  Nb4 {[%clk 0:01:38]} 20. Qd4 {[%clk 0:00:45]}  Qb3 {[%clk 0:01:33]} 0-1


[Site "https://www.chess.com"]

[Event "Titled Tuesday Blitz April 25 Early 2023"]
[White "Pranesh M"]
[Black "Ezat, Mohamed"]
[WhiteFideId "35028600"]
[BlackFideId "10600906"]
[WhiteElo "2437"]
[BlackElo "2386"]
[Result "1-0"]
[Round "02"]
[TimeControl "180+2"]
[Date "2023.04.25"]
[WhiteClock "0:01:00"]
[BlackClock "0:00:07"]

1. e4 {[%clk 0:02:55]}  c6 {[%clk 0:02:58]} 2. d4 {[%clk 0:02:55]}  d5 {[%clk 0:02:58]} 3. e5 {[%clk 0:02:56]}  c5 {[%clk 0:02:58]} 4. dxc5 {[%clk 0:02:55]}  e6 {[%clk 0:02:58]} 5. Be3 {[%clk 0:02:56]}  Nh6 {[%clk 0:02:57]} 6. Bd3 {[%clk 0:02:55]}  Nd7 {[%clk 0:02:54]} 7. b4 {[%clk 0:02:54]}  Nxe5 {[%clk 0:02:53]} 8. Bb5+ {[%clk 0:02:53]}  Bd7 {[%clk 0:02:51]} 9. Qe2 {[%clk 0:02:48]}  Nf5 {[%clk 0:02:47]} 10. Nf3 {[%clk 0:02:43]}  Nxf3+ {[%clk 0:02:39]} 11. gxf3 {[%clk 0:02:44]}  a5 {[%clk 0:02:35]} 12. c3 {[%clk 0:02:32]}  Be7 {[%clk 0:02:07]} 13. a4 {[%clk 0:02:29]}  O-O {[%clk 0:02:04]} 14. O-O {[%clk 0:02:29]}  Bf6 {[%clk 0:02:01]} 15. Ra2 {[%clk 0:02:28]}  axb4 {[%clk 0:01:16]} 16. cxb4 {[%clk 0:02:29]}  d4 {[%clk 0:01:17]} 17. Bf4 {[%clk 0:02:24]}  Bxb5 {[%clk 0:01:16]} 18. Qxb5 {[%clk 0:02:20]}  Qd5 {[%clk 0:01:15]} 19. Ra3 {[%clk 0:02:15]}  e5 {[%clk 0:01:11]} 20. Bg3 {[%clk 0:02:15]}  h5 {[%clk 0:01:11]} 21. h3 {[%clk 0:02:08]}  Rfd8 {[%clk 0:00:49]} 22. Nd2 {[%clk 0:02:05]}  Ra6 {[%clk 0:00:40]} 23. Rd3 {[%clk 0:01:58]}  Bg5 {[%clk 0:00:38]} 24. Ne4 {[%clk 0:01:58]}  Rg6 {[%clk 0:00:38]} 25. Kh1 {[%clk 0:01:56]}  Bh4 {[%clk 0:00:32]} 26. Bh2 {[%clk 0:01:48]}  Be7 {[%clk 0:00:28]} 27. Nc3 {[%clk 0:01:35]}  Qb3 {[%clk 0:00:21]} 28. Ne4 {[%clk 0:01:28]}  Qd5 {[%clk 0:00:17]} 29. a5 {[%clk 0:01:24]}  Nh4 {[%clk 0:00:16]} 30. Re1 {[%clk 0:01:23]}  Qe6 {[%clk 0:00:14]} 31. f4 {[%clk 0:01:20]}  exf4 {[%clk 0:00:10]} 32. Qxb7 {[%clk 0:01:21]}  f5 {[%clk 0:00:09]} 33. Nf6+ {[%clk 0:01:08]}  Qxf6 {[%clk 0:00:08]} 34. Rxe7 {[%clk 0:01:08]}  Qg5 {[%clk 0:00:07]} 35. Rd1 {[%clk 0:01:00]}  f3 {[%clk 0:00:07]} 36. Rg1 {[%clk 0:01:00]} 1-0


[Site "https://www.chess.com"]

[Event "Titled Tuesday Blitz April 25 Early 2023"]
[White "Hamitevici, Vladimir"]
[Black "Chigaev, Maksim"]
[WhiteFideId "13902393"]
[BlackFideId "4108116"]
[WhiteElo "2401"]
[BlackElo "2547"]
[Result "0-1"]
[Round "02"]
[TimeControl "180+2"]
[Date "2023.04.25"]
[WhiteClock "0:00:08"]
[BlackClock "0:00:05"]

1. d4 {[%clk 0:03:00]}  Nf6 {[%clk 0:02:59]} 2. Bf4 {[%clk 0:03:00]}  d6 {[%clk 0:02:59]} 3. e3 {[%clk 0:02:56]}  g6 {[%clk 0:02:59]} 4. h3 {[%clk 0:02:55]}  Bg7 {[%clk 0:02:59]} 5. Nf3 {[%clk 0:02:56]}  O-O {[%clk 0:02:59]} 6. Nbd2 {[%clk 0:02:52]}  c5 {[%clk 0:03:00]} 7. c3 {[%clk 0:02:44]}  Nc6 {[%clk 0:03:00]} 8. dxc5 {[%clk 0:02:32]}  dxc5 {[%clk 0:03:01]} 9. Bc4 {[%clk 0:02:25]}  Bf5 {[%clk 0:02:48]} 10. O-O {[%clk 0:02:21]}  Bd3 {[%clk 0:02:47]} 11. Bxd3 {[%clk 0:02:17]}  Qxd3 {[%clk 0:02:48]} 12. Qb3 {[%clk 0:02:08]}  b6 {[%clk 0:02:24]} 13. Qa4 {[%clk 0:01:52]}  Qd7 {[%clk 0:02:22]} 14. Nc4 {[%clk 0:01:46]}  Qb7 {[%clk 0:02:02]} 15. Qb3 {[%clk 0:01:40]}  b5 {[%clk 0:01:53]} 16. a4 {[%clk 0:01:35]}  a6 {[%clk 0:01:40]} 17. axb5 {[%clk 0:01:15]}  axb5 {[%clk 0:01:41]} 18. Na3 {[%clk 0:01:09]}  b4 {[%clk 0:01:27]} 19. cxb4 {[%clk 0:01:02]}  Qxb4 {[%clk 0:01:22]} 20. Qxb4 {[%clk 0:00:59]}  Nxb4 {[%clk 0:01:16]} 21. Ne5 {[%clk 0:00:52]}  h6 {[%clk 0:01:05]} 22. Nec4 {[%clk 0:00:53]}  Nd3 {[%clk 0:00:57]} 23. Rfd1 {[%clk 0:00:41]}  Nxf4 {[%clk 0:00:49]} 24. exf4 {[%clk 0:00:41]}  e6 {[%clk 0:00:47]} 25. Nb6 {[%clk 0:00:23]}  Rad8 {[%clk 0:00:25]} 26. Nac4 {[%clk 0:00:24]}  Nd5 {[%clk 0:00:21]} 27. Nxd5 {[%clk 0:00:16]}  exd5 {[%clk 0:00:22]} 28. Ne5 {[%clk 0:00:16]}  Rfe8 {[%clk 0:00:17]} 29. Ra5 {[%clk 0:00:14]}  Bf8 {[%clk 0:00:13]} 30. Ra7 {[%clk 0:00:13]}  d4 {[%clk 0:00:03]} 31. Nxf7 {[%clk 0:00:12]}  Ra8 {[%clk 0:00:04]} 32. Rd7 {[%clk 0:00:09]}  Rab8 {[%clk 0:00:03]} 33. Ne5 {[%clk 0:00:09]}  Rxb2 {[%clk 0:00:03]} 34. Nxg6 {[%clk 0:00:09]}  Bg7 {[%clk 0:00:02]} 35. Ra1 {[%clk 0:00:06]}  Bf6 {[%clk 0:00:01]} 36. Ra6 {[%clk 0:00:05]}  Bg7 {[%clk 0:00:01]} 37. Raa7 {[%clk 0:00:05]}  Bf6 {[%clk 0:00:02]} 38. Rf7 {[%clk 0:00:05]}  Rb6 {[%clk 0:00:02]} 39. Rh7 {[%clk 0:00:04]}  d3 {[%clk 0:00:02]} 40. Rhd7 {[%clk 0:00:04]}  c4 {[%clk 0:00:03]} 41. Ne5 {[%clk 0:00:04]}  Bxe5 {[%clk 0:00:03]} 42. fxe5 {[%clk 0:00:05]}  Rg6 {[%clk 0:00:04]} 43. Rac7 {[%clk 0:00:05]}  Rg5 {[%clk 0:00:02]} 44. f4 {[%clk 0:00:04]}  Rg3 {[%clk 0:00:02]} 45. Rxc4 {[%clk 0:00:05]}  h5 {[%clk 0:00:02]} 46. Rc6 {[%clk 0:00:04]}  h4 {[%clk 0:00:02]} 47. Rcd6 {[%clk 0:00:05]}  Rf8 {[%clk 0:00:03]} 48. Rxd3 {[%clk 0:00:05]}  Rxd3 {[%clk 0:00:03]} 49. Rxd3 {[%clk 0:00:06]}  Rxf4 {[%clk 0:00:04]} 50. Rf3 {[%clk 0:00:06]}  Re4 {[%clk 0:00:04]} 51. Rf5 {[%clk 0:00:06]}  Kg7 {[%clk 0:00:05]} 52. Kf2 {[%clk 0:00:05]}  Kg6 {[%clk 0:00:05]} 53. Rf6+ {[%clk 0:00:05]}  Kg5 {[%clk 0:00:06]} 54. Re6 {[%clk 0:00:05]}  Kf5 {[%clk 0:00:06]} 55. Re8 {[%clk 0:00:05]}  Rf4+ {[%clk 0:00:04]} 56. Ke3 {[%clk 0:00:05]}  Re4+ {[%clk 0:00:04]} 57. Kd3 {[%clk 0:00:06]}  Re1 {[%clk 0:00:05]} 58. e6 {[%clk 0:00:05]}  Kf6 {[%clk 0:00:02]} 59. Rh8 {[%clk 0:00:04]}  Kg5 {[%clk 0:00:02]} 60. Rg8+ {[%clk 0:00:03]}  Kh5 {[%clk 0:00:02]} 61. Re8 {[%clk 0:00:03]}  Kg6 {[%clk 0:00:02]} 62. e7 {[%clk 0:00:04]}  Kg7 {[%clk 0:00:02]} 63. Rh8 {[%clk 0:00:05]}  Kxh8 {[%clk 0:00:02]} 64. Kd4 {[%clk 0:00:04]}  Rxe7 {[%clk 0:00:03]} 65. Kd3 {[%clk 0:00:05]}  Rg7 {[%clk 0:00:03]} 66. Kd4 {[%clk 0:00:06]}  Rxg2 {[%clk 0:00:04]} 67. Ke3 {[%clk 0:00:07]}  Rg3+ {[%clk 0:00:05]} 68. Kf4 {[%clk 0:00:08]}  Kg7 {[%clk 0:00:05]} 0-1


[Site "https://www.chess.com"]

[Event "Titled Tuesday Blitz April 25 Early 2023"]
[White "Durarbayli, Vasif"]
[Black "Taboas Rodriguez, Daniel"]
[WhiteFideId "13402935"]
[BlackFideId "2208466"]
[WhiteElo "2551"]
[BlackElo "2365"]
[Result "1-0"]
[Round "02"]
[TimeControl "180+2"]
[Date "2023.04.25"]
[WhiteClock "0:00:05"]
[BlackClock "0:00:11"]

1. e4 {[%clk 0:03:00]}  e5 {[%clk 0:02:59]} 2. Nc3 {[%clk 0:02:59]}  Nf6 {[%clk 0:02:59]} 3. d4 {[%clk 0:02:59]}  exd4 {[%clk 0:02:58]} 4. Qxd4 {[%clk 0:03:00]}  Nc6 {[%clk 0:02:59]} 5. Qd3 {[%clk 0:03:01]}  Bb4 {[%clk 0:02:59]} 6. Bd2 {[%clk 0:03:01]}  O-O {[%clk 0:02:35]} 7. O-O-O {[%clk 0:03:01]}  d6 {[%clk 0:02:34]} 8. a3 {[%clk 0:02:13]}  Bc5 {[%clk 0:02:33]} 9. f4 {[%clk 0:02:12]}  Ng4 {[%clk 0:02:33]} 10. Nh3 {[%clk 0:02:12]}  f5 {[%clk 0:02:22]} 11. Qg3 {[%clk 0:02:10]}  Kh8 {[%clk 0:02:19]} 12. Bc4 {[%clk 0:02:08]}  Bd7 {[%clk 0:02:10]} 13. Rhf1 {[%clk 0:02:04]}  h6 {[%clk 0:01:41]} 14. Ng5 {[%clk 0:01:52]}  hxg5 {[%clk 0:01:40]} 15. fxg5 {[%clk 0:01:43]}  g6 {[%clk 0:01:23]} 16. h3 {[%clk 0:01:43]}  Nce5 {[%clk 0:01:18]} 17. Ba2 {[%clk 0:01:34]}  Kg7 {[%clk 0:01:13]} 18. hxg4 {[%clk 0:01:21]}  Nxg4 {[%clk 0:01:14]} 19. Nd5 {[%clk 0:01:16]}  Bd4 {[%clk 0:01:06]} 20. exf5 {[%clk 0:01:08]}  Bxf5 {[%clk 0:01:05]} 21. Rf4 {[%clk 0:01:07]}  Be5 {[%clk 0:01:03]} 22. Bc3 {[%clk 0:01:07]}  Qxg5 {[%clk 0:00:57]} 23. Kb1 {[%clk 0:00:39]}  Bxc3 {[%clk 0:00:45]} 24. Qxc3+ {[%clk 0:00:39]}  Ne5 {[%clk 0:00:43]} 25. Qxc7+ {[%clk 0:00:38]}  Rf7 {[%clk 0:00:39]} 26. Qxd6 {[%clk 0:00:36]}  Re8 {[%clk 0:00:32]} 27. Rf2 {[%clk 0:00:23]}  Ng4 {[%clk 0:00:24]} 28. Qg3 {[%clk 0:00:12]}  Rd8 {[%clk 0:00:20]} 29. Qc3+ {[%clk 0:00:12]}  Nf6 {[%clk 0:00:19]} 30. Rfd2 {[%clk 0:00:11]}  Rfd7 {[%clk 0:00:19]} 31. Nxf6 {[%clk 0:00:09]}  Qxf6 {[%clk 0:00:20]} 32. Rxd7+ {[%clk 0:00:09]}  Rxd7 {[%clk 0:00:20]} 33. Rxd7+ {[%clk 0:00:09]}  Bxd7 {[%clk 0:00:21]} 34. Qxf6+ {[%clk 0:00:07]}  Kxf6 {[%clk 0:00:21]} 35. Kc1 {[%clk 0:00:08]}  Ke5 {[%clk 0:00:21]} 36. Kd2 {[%clk 0:00:08]}  Kf4 {[%clk 0:00:21]} 37. Bd5 {[%clk 0:00:08]}  b6 {[%clk 0:00:20]} 38. c4 {[%clk 0:00:05]}  g5 {[%clk 0:00:20]} 39. b4 {[%clk 0:00:05]}  g4 {[%clk 0:00:20]} 40. Kd3 {[%clk 0:00:05]}  a5 {[%clk 0:00:16]} 41. Kd4 {[%clk 0:00:05]}  axb4 {[%clk 0:00:16]} 42. axb4 {[%clk 0:00:05]}  Kg3 {[%clk 0:00:12]} 43. Ke5 {[%clk 0:00:05]}  Kf2 {[%clk 0:00:11]} 44. Kd6 {[%clk 0:00:05]}  Be8 {[%clk 0:00:12]} 45. c5 {[%clk 0:00:06]}  bxc5 {[%clk 0:00:11]} 46. bxc5 {[%clk 0:00:06]}  g3 {[%clk 0:00:11]} 47. c6 {[%clk 0:00:05]} 1-0


[Site "https://www.chess.com"]

[Event "Titled Tuesday Blitz April 25 Early 2023"]
[White "Gupta, Abhijeet"]
[Black "Martinez Ramirez, Lennis"]
[WhiteFideId "5010608"]
[BlackFideId "3509079"]
[WhiteElo "2528"]
[BlackElo "2410"]
[Result "1-0"]
[Round "02"]
[TimeControl "180+2"]
[Date "2023.04.25"]
[WhiteClock "0:00:05"]
[BlackClock "0:00:06"]

1. d4 {[%clk 0:03:00]}  e6 {[%clk 0:02:59]} 2. Nf3 {[%clk 0:03:00]}  Nf6 {[%clk 0:02:56]} 3. Bf4 {[%clk 0:02:59]}  Nh5 {[%clk 0:02:53]} 4. Bg5 {[%clk 0:02:45]}  Be7 {[%clk 0:02:53]} 5. h4 {[%clk 0:02:34]}  b6 {[%clk 0:02:51]} 6. e3 {[%clk 0:02:30]}  h6 {[%clk 0:02:51]} 7. Bxe7 {[%clk 0:02:30]}  Qxe7 {[%clk 0:02:51]} 8. c4 {[%clk 0:02:20]}  Bb7 {[%clk 0:02:47]} 9. Nc3 {[%clk 0:02:19]}  Nf6 {[%clk 0:02:37]} 10. Bd3 {[%clk 0:02:18]}  c5 {[%clk 0:02:34]} 11. Rg1 {[%clk 0:01:49]}  d5 {[%clk 0:02:31]} 12. cxd5 {[%clk 0:01:43]}  Nxd5 {[%clk 0:02:29]} 13. Bb5+ {[%clk 0:01:41]}  Kf8 {[%clk 0:02:23]} 14. Ne5 {[%clk 0:01:32]}  g6 {[%clk 0:01:54]} 15. Bc4 {[%clk 0:01:14]}  Nxc3 {[%clk 0:01:51]} 16. bxc3 {[%clk 0:01:15]}  Nd7 {[%clk 0:01:50]} 17. Nxd7+ {[%clk 0:01:08]}  Qxd7 {[%clk 0:01:49]} 18. dxc5 {[%clk 0:01:08]}  Qxd1+ {[%clk 0:01:28]} 19. Rxd1 {[%clk 0:01:08]}  Ke7 {[%clk 0:01:27]} 20. Bb5 {[%clk 0:00:59]}  Rhd8 {[%clk 0:01:18]} 21. c6 {[%clk 0:00:59]}  Rxd1+ {[%clk 0:01:08]} 22. Kxd1 {[%clk 0:01:00]}  Bc8 {[%clk 0:01:08]} 23. Ke2 {[%clk 0:00:58]}  a6 {[%clk 0:01:08]} 24. Bd3 {[%clk 0:00:52]}  b5 {[%clk 0:00:53]} 25. Rb1 {[%clk 0:00:49]}  Ra7 {[%clk 0:00:51]} 26. c4 {[%clk 0:00:48]}  bxc4 {[%clk 0:00:49]} 27. Bxc4 {[%clk 0:00:48]}  Kd6 {[%clk 0:00:47]} 28. Rd1+ {[%clk 0:00:31]}  Kxc6 {[%clk 0:00:45]} 29. Rd8 {[%clk 0:00:31]}  Rc7 {[%clk 0:00:41]} 30. g4 {[%clk 0:00:28]}  Kc5 {[%clk 0:00:18]} 31. Bb3 {[%clk 0:00:25]}  a5 {[%clk 0:00:16]} 32. Rh8 {[%clk 0:00:23]}  Kb4 {[%clk 0:00:16]} 33. Rxh6 {[%clk 0:00:20]}  a4 {[%clk 0:00:16]} 34. Bd1 {[%clk 0:00:20]}  e5 {[%clk 0:00:16]} 35. Kf3 {[%clk 0:00:14]}  Be6 {[%clk 0:00:15]} 36. h5 {[%clk 0:00:14]}  gxh5 {[%clk 0:00:15]} 37. gxh5 {[%clk 0:00:14]}  Bxa2 {[%clk 0:00:15]} 38. Rb6+ {[%clk 0:00:14]}  Ka3 {[%clk 0:00:14]} 39. h6 {[%clk 0:00:14]}  f5 {[%clk 0:00:13]} 40. Rb5 {[%clk 0:00:12]}  Bb3 {[%clk 0:00:12]} 41. Be2 {[%clk 0:00:11]}  e4+ {[%clk 0:00:11]} 42. Kf4 {[%clk 0:00:12]}  Be6 {[%clk 0:00:10]} 43. Rb6 {[%clk 0:00:09]}  Bc8 {[%clk 0:00:06]} 44. Bh5 {[%clk 0:00:07]}  Rc2 {[%clk 0:00:04]} 45. h7 {[%clk 0:00:05]}  Rxf2+ {[%clk 0:00:05]} 46. Kg3 {[%clk 0:00:05]}  Rf1 {[%clk 0:00:05]} 47. h8=Q {[%clk 0:00:05]}  Rg1+ {[%clk 0:00:05]} 48. Kf4 {[%clk 0:00:05]}  Rc1 {[%clk 0:00:06]} 49. Qb2# {[%clk 0:00:05]} 1-0


[Site "https://www.chess.com"]

[Event "Titled Tuesday Blitz April 25 Early 2023"]
[White "Panesso Rivera, Henry"]
[Black "Svane, Frederik"]
[WhiteFideId "4402707"]
[BlackFideId "12923044"]
[WhiteElo "2345"]
[BlackElo "2502"]
[Result "0-1"]
[Round "02"]
[TimeControl "180+2"]
[Date "2023.04.25"]
[WhiteClock "0:00:17"]
[BlackClock "0:00:08"]

1. Nf3 {[%clk 0:03:00]}  Nf6 {[%clk 0:02:58]} 2. b3 {[%clk 0:03:00]}  e6 {[%clk 0:02:58]} 3. Bb2 {[%clk 0:03:00]}  b6 {[%clk 0:02:58]} 4. e3 {[%clk 0:03:00]}  Bb7 {[%clk 0:02:59]} 5. d4 {[%clk 0:03:01]}  Be7 {[%clk 0:02:59]} 6. Nbd2 {[%clk 0:03:01]}  O-O {[%clk 0:02:59]} 7. Bd3 {[%clk 0:03:01]}  d5 {[%clk 0:02:59]} 8. Ne5 {[%clk 0:03:01]}  c5 {[%clk 0:02:58]} 9. Qf3 {[%clk 0:03:01]}  Nc6 {[%clk 0:02:54]} 10. a3 {[%clk 0:02:59]}  Nd7 {[%clk 0:02:39]} 11. Nxc6 {[%clk 0:02:51]}  Bxc6 {[%clk 0:02:39]} 12. Qh3 {[%clk 0:02:51]}  g6 {[%clk 0:02:36]} 13. Qg3 {[%clk 0:02:31]}  Bh4 {[%clk 0:02:32]} 14. Qf3 {[%clk 0:02:29]}  Bf6 {[%clk 0:02:32]} 15. h4 {[%clk 0:02:26]}  e5 {[%clk 0:02:23]} 16. Qg3 {[%clk 0:02:19]}  e4 {[%clk 0:02:17]} 17. Be2 {[%clk 0:02:17]}  cxd4 {[%clk 0:02:16]} 18. exd4 {[%clk 0:02:16]}  Qb8 {[%clk 0:02:10]} 19. Qh3 {[%clk 0:02:12]}  Bg7 {[%clk 0:01:25]} 20. h5 {[%clk 0:02:10]}  Nf6 {[%clk 0:01:25]} 21. hxg6 {[%clk 0:02:10]}  fxg6 {[%clk 0:01:22]} 22. Qe6+ {[%clk 0:02:08]}  Rf7 {[%clk 0:01:21]} 23. Qxc6 {[%clk 0:02:08]}  e3 {[%clk 0:01:17]} 24. Nf3 {[%clk 0:01:42]}  exf2+ {[%clk 0:01:16]} 25. Kd1 {[%clk 0:01:42]}  Ng4 {[%clk 0:01:07]} 26. Bc1 {[%clk 0:01:37]}  Qe8 {[%clk 0:00:59]} 27. Qxe8+ {[%clk 0:01:35]}  Rxe8 {[%clk 0:01:00]} 28. Bb5 {[%clk 0:01:14]}  Re4 {[%clk 0:00:40]} 29. c3 {[%clk 0:01:09]}  Rc7 {[%clk 0:00:29]} 30. Bd2 {[%clk 0:01:09]}  Ne3+ {[%clk 0:00:28]} 31. Bxe3 {[%clk 0:01:05]}  Rxe3 {[%clk 0:00:29]} 32. c4 {[%clk 0:01:03]}  Rxb3 {[%clk 0:00:29]} 33. Ba4 {[%clk 0:00:50]}  Rd3+ {[%clk 0:00:29]} 34. Ke2 {[%clk 0:00:50]}  dxc4 {[%clk 0:00:29]} 35. Kxf2 {[%clk 0:00:49]}  Rf7 {[%clk 0:00:25]} 36. Kg1 {[%clk 0:00:40]}  Rfxf3 {[%clk 0:00:16]} 37. gxf3 {[%clk 0:00:41]}  Bxd4+ {[%clk 0:00:17]} 38. Kg2 {[%clk 0:00:41]}  Rd2+ {[%clk 0:00:18]} 39. Kg3 {[%clk 0:00:41]}  Be5+ {[%clk 0:00:18]} 40. Kh3 {[%clk 0:00:39]}  Bxa1 {[%clk 0:00:18]} 41. Rxa1 {[%clk 0:00:40]}  a6 {[%clk 0:00:16]} 42. Bc6 {[%clk 0:00:39]}  b5 {[%clk 0:00:16]} 43. Bb7 {[%clk 0:00:39]}  Rd6 {[%clk 0:00:15]} 44. Kg3 {[%clk 0:00:37]}  Kf7 {[%clk 0:00:16]} 45. Kf4 {[%clk 0:00:38]}  Kf6 {[%clk 0:00:16]} 46. Rc1 {[%clk 0:00:36]}  h5 {[%clk 0:00:15]} 47. Ke4 {[%clk 0:00:36]}  g5 {[%clk 0:00:15]} 48. a4 {[%clk 0:00:35]}  h4 {[%clk 0:00:14]} 49. axb5 {[%clk 0:00:34]}  axb5 {[%clk 0:00:15]} 50. Bd5 {[%clk 0:00:33]}  Rd8 {[%clk 0:00:12]} 51. Rb1 {[%clk 0:00:33]}  Rb8 {[%clk 0:00:08]} 52. Kd4 {[%clk 0:00:32]}  h3 {[%clk 0:00:08]} 53. Rh1 {[%clk 0:00:32]}  Rh8 {[%clk 0:00:08]} 54. Bc6 {[%clk 0:00:31]}  Rh4+ {[%clk 0:00:06]} 55. Ke3 {[%clk 0:00:30]}  b4 {[%clk 0:00:06]} 56. Bd7 {[%clk 0:00:31]}  h2 {[%clk 0:00:07]} 57. Kf2 {[%clk 0:00:24]}  b3 {[%clk 0:00:07]} 58. Kg2 {[%clk 0:00:22]}  c3 {[%clk 0:00:07]} 59. Bc6 {[%clk 0:00:16]}  c2 {[%clk 0:00:07]} 60. Be4 {[%clk 0:00:17]}  Rxe4 {[%clk 0:00:07]} 61. fxe4 {[%clk 0:00:17]}  b2 {[%clk 0:00:08]} 0-1


[Site "https://www.chess.com"]